fUSD/lending_fUSD_20260107
["ID","MTS","AMOUNT","RATE_DAILY","PERIOD"]
[400658486,1767772242515,-175.0,0.00036183,120]
[400658487,1767772242526,-152.0,0.00036305,3]
[400658488,1767772242535,-1000.0,0.00036344,2]
[400658489,1767772242545,-1000.0,0.000364,7]
[400658490,1767772242555,-151.0,0.00036558,31]
[400658491,1767772242564,-151.0,0.00036558,31]
[400658492,1767772242574,-151.0,0.00036558,31]
[400658493,1767772242584,-151.0,0.00036558,31]
[400658494,1767772242593,-151.0,0.00036558,31]
[400658496,1767772242603,-151.0,0.00036558,31]
[400658498,1767772242612,-151.0,0.00036558,31]
[400658500,1767772242621,-284.249783,0.00036558,31]
[400658502,1767772242631,-151.0,0.00036558,31]
[400658504,1767772242640,-151.0,0.00036558,31]
[400658505,1767772242649,-151.0,0.00036558,31]
[400658508,1767772242659,-571.097463,0.00036558,31]
[400658510,1767772242669,-151.0,0.00036558,31]
[400658513,1767772242678,-571.097463,0.00036558,31]
[400658516,1767772242687,-151.0,0.00036558,31]
[400658518,1767772242696,-571.097463,0.00036558,31]
[400658520,1767772242706,-525.72357,0.00036558,31]
[400658522,1767772242715,-571.097463,0.00036558,31]
[400658524,1767772242724,-525.72357,0.00036558,31]
[400658526,1767772242733,-525.72357,0.00036558,31]
[400658528,1767772242742,-204.787634,0.00036558,31]
[400658530,1767772242752,-525.72357,0.00036558,31]
[400658532,1767772242763,-204.787634,0.00036558,31]
[400658534,1767772242773,-204.787634,0.00036558,31]
[400658536,1767772242782,-204.787634,0.00036558,31]
[400658538,1767772242792,-263.20645,0.00036558,31]
[400658540,1767772242802,-2118.512815,0.00036558,31]
[400658543,1767772242811,-2118.512815,0.00036558,31]
[400658545,1767772242821,-2118.512815,0.00036558,31]
[400658547,1767772242831,-214.124908,0.00036558,31]
[400658549,1767772242839,-151.0,0.00036558,31]
[400658551,1767772242849,-2118.512815,0.00036558,31]
[400658553,1767772242858,-214.124908,0.00036558,31]
[400658555,1767772242867,-151.0,0.00036558,31]
[400658557,1767772242876,-214.124908,0.00036558,31]
[400658559,1767772242886,-151.0,0.00036558,31]
[400658561,1767772242894,-214.124908,0.00036558,31]
[400658563,1767772242904,-151.0,0.00036558,31]
[400658565,1767772242913,-389.713068,0.00036558,28]
[400658567,1767772242923,-389.713068,0.00036558,28]
[400658569,1767772242932,-389.713068,0.00036558,28]
[400658571,1767772242941,-151.0,0.00036558,31]
[400658573,1767772242950,-389.713068,0.00036558,28]
[400658575,1767772242959,-172.224925,0.00036559,31]
[400658577,1767772242968,-151.0,0.00036559,31]
[400658579,1767772242978,-151.0,0.00036559,31]
[400658581,1767772242987,-151.0,0.00036559,31]
[400658583,1767772242996,-151.0,0.00036559,31]
[400658585,1767772243005,-151.0,0.00036559,31]
[400658587,1767772243014,-777.305943,0.00036559,31]
[400658589,1767772243024,-777.305943,0.00036559,31]
[400658591,1767772243033,-777.305943,0.00036559,31]
[400658593,1767772243041,-777.305943,0.00036559,31]
[400658595,1767772243051,-151.0,0.00036559,31]
[400658597,1767772243060,-278.602015,0.00036559,31]
[400658599,1767772243070,-187.533214,0.00036559,31]
[400658601,1767772243079,-1354.4,0.00036559,4]
[400658603,1767772243088,-160.0,0.00037,120]
[400658605,1767772243097,-1354.4,0.00037065,5]
[400658607,1767772243107,-2635.79412451,0.000371,2]
[400658609,1767772243116,-162.167643,0.00037105,31]
[400658611,1767772243126,-151.0,0.00037105,7]
[400658613,1767772243135,-151.0,0.00037105,7]
[400658614,1767772243143,-151.0,0.00037105,31]
[400658616,1767772243153,-351.0,0.0003745,120]
[400658618,1767772243162,-1354.4,0.0003757,5]
[400658620,1767772243171,-1171.02247827,0.00037865,30]
[400658623,1767772243181,-300.0,0.00037899,10]
[400658625,1767772243190,-651.03116604,0.00037899,30]
[400658627,1767772243199,-151.0,0.00037899,31]
[400658628,1767772243208,-151.0,0.00037899,31]
[400658631,1767772243218,-159.740768,0.00037899,31]
[400658633,1767772243227,-151.0,0.00037899,31]
[400658634,1767772243237,-151.0,0.00037899,31]
[400658636,1767772243247,-151.0,0.00037899,31]
[400658638,1767772243259,-222.615984,0.00037899,31]
[400658640,1767772243269,-222.615984,0.00037899,31]
[400658642,1767772243278,-222.615984,0.00037899,31]
[400658645,1767772243288,-222.615984,0.00037899,31]
[400658646,1767772243299,-151.0,0.00037899,31]
[400658649,1767772243310,-151.0,0.00037899,31]
[400658650,1767772243319,-151.0,0.00037899,31]
[400658677,1767772243566,-53973.99690133,0.000379,30]
[400658679,1767772243577,-387.42,0.000379,30]
[400658681,1767772243587,-151.0,0.000379,31]
[400658683,1767772243596,-178.494807,0.000379,31]
[400658685,1767772243605,-233.603059,0.000379,31]
[400658687,1767772243615,-151.0,0.000379,31]
[400658689,1767772243624,-151.0,0.000379,31]
[400658691,1767772243634,-157.645444,0.000379,31]
[400658693,1767772243644,-151.0,0.000379,31]
[400658695,1767772243653,-170.728994,0.000379,31]
[400658697,1767772243662,-166.736951,0.000379,31]
[400658699,1767772243672,-170.728994,0.000379,31]
[400658701,1767772243683,-170.728994,0.000379,31]
[400658703,1767772243692,-170.728994,0.000379,31]
[400658705,1767772243701,-405.21446,0.000379,31]
[400658707,1767772243711,-405.21446,0.000379,31]
[400658709,1767772243720,-163.645189,0.000379,31]
[400658711,1767772243729,-405.21446,0.000379,31]
[400658713,1767772243739,-405.21446,0.000379,31]
[400658715,1767772243747,-168.565541,0.000379,31]
[400658717,1767772243757,-974.209136,0.000379,31]
[400658719,1767772243766,-974.209136,0.000379,31]
[400658721,1767772243776,-974.209136,0.000379,31]
[400658723,1767772243785,-974.209136,0.000379,31]
[400658725,1767772243795,-544.651649,0.000379,31]
[400658728,1767772243805,-544.651649,0.000379,31]
[400658730,1767772243814,-544.651649,0.000379,31]
[400658732,1767772243824,-544.651649,0.000379,31]
[400658735,1767772243833,-1082.496084,0.000379,31]
[400658737,1767772243842,-515.531297,0.000379,31]
[400658740,1767772243852,-1082.496084,0.000379,31]
[400658742,1767772243861,-515.531297,0.000379,31]
[400658744,1767772243870,-1082.496084,0.000379,31]
[400658746,1767772243881,-515.531297,0.000379,31]
[400658748,1767772243890,-1082.496084,0.000379,31]
[400658750,1767772243899,-515.531297,0.000379,31]
[400658752,1767772243909,-780.478158,0.000379,31]
[400658754,1767772243918,-780.478158,0.000379,31]
[400658756,1767772243927,-780.478158,0.000379,31]
[400658758,1767772243937,-780.478158,0.000379,31]
[400658760,1767772243947,-782.250422,0.000379,31]
[400658762,1767772243956,-782.250422,0.000379,31]
[400658764,1767772243970,-782.250422,0.000379,31]
[400658766,1767772243980,-782.250422,0.000379,31]
[400658769,1767772243990,-151.0,0.000379,31]
[400658771,1767772244000,-191.506953,0.000379,31]
[400658773,1767772244010,-405.945377,0.000379,31]
[400658775,1767772244020,-151.0,0.000379,31]
[400658777,1767772244030,-405.945377,0.000379,31]
[400658779,1767772244039,-151.0,0.000379,31]
[400658781,1767772244049,-405.945377,0.000379,31]
[400658783,1767772244059,-151.0,0.000379,31]
[400658785,1767772244068,-405.945377,0.000379,31]
[400658787,1767772244078,-151.0,0.000379,31]
[400658789,1767772244088,-151.0,0.000379,31]
[400658791,1767772244098,-151.0,0.000379,31]
[400658793,1767772244108,-151.0,0.000379,31]
[400658795,1767772244118,-242.653987,0.000379,31]
[400658797,1767772244127,-151.0,0.000379,31]
[400658799,1767772244137,-242.653987,0.000379,31]
[400658801,1767772244146,-242.653987,0.000379,31]
[400658803,1767772244156,-555.026881,0.000379,31]
[400658805,1767772244169,-242.653987,0.000379,31]
[400658807,1767772244179,-555.026881,0.000379,31]
[400658810,1767772244188,-555.026881,0.000379,31]
[400658812,1767772244198,-555.026881,0.000379,31]
[400658814,1767772244208,-151.0,0.000379,31]
[400658816,1767772244218,-255.891169,0.000379,30]
[400658818,1767772244228,-255.891169,0.000379,30]
[400658820,1767772244238,-255.891169,0.000379,30]
[400658822,1767772244249,-255.891169,0.000379,30]
[400658824,1767772244261,-151.0,0.000379,31]
[400658826,1767772244271,-275.784864,0.000379,31]
[400658828,1767772244281,-275.784864,0.000379,31]
[400658831,1767772244291,-191.120632,0.000379,31]
[400658833,1767772244301,-275.784864,0.000379,31]
[400658835,1767772244313,-275.784864,0.000379,31]
[400658837,1767772244324,-151.0,0.000379,31]
[400658839,1767772244335,-151.0,0.000379,31]
[400658841,1767772244345,-151.0,0.000379,31]
[400658843,1767772244354,-151.0,0.000379,31]
[400658845,1767772244368,-151.0,0.000379,30]
[400658848,1767772244378,-151.0,0.000379,31]
[400658850,1767772244388,-180.654415,0.000379,31]
[400658852,1767772244398,-151.0,0.000379,31]
[400658854,1767772244408,-151.0,0.000379,31]
[400658856,1767772244418,-151.0,0.000379,31]
[400658858,1767772244429,-151.0,0.000379,31]
[400658860,1767772244439,-151.0,0.000379,31]
[400658862,1767772244449,-199.098915,0.000379,31]
[400658864,1767772244459,-199.098915,0.000379,31]
[400658866,1767772244469,-199.098915,0.000379,31]
[400658868,1767772244479,-199.098915,0.000379,31]
[400658870,1767772244490,-175.0,0.00037993,120]
[400658872,1767772244500,-549.87,0.00038,30]
[400658875,1767772244511,-219.49296091,0.00038,120]
[400658877,1767772244521,-427.468426,0.00038,120]
[400658879,1767772244531,-1354.4,0.00038076,5]
[400658880,1767772244541,-456.05,0.000381,2]
[400658883,1767772244552,-466.28,0.00038211,2]
[400658885,1767772244565,-466.28,0.00038211,2]
[400658887,1767772244576,-939.78,0.00038275,2]
[400658889,1767772244585,-574.767113,0.00038356,120]
[400658891,1767772244596,-574.767113,0.00038356,120]
[400658893,1767772244606,-574.767113,0.00038356,120]
[400658895,1767772244615,-574.767113,0.00038356,120]
[400658897,1767772244625,-1354.4,0.00038581,5]
[400658899,1767772244635,-1405.0,0.00038666,2]
[400658901,1767772244646,-496.592,0.00038666,2]
[400658903,1767772244655,-614.0,0.00038666,2]
[400658905,1767772244665,-3467.0,0.00038666,2]
[400658907,1767772244675,-1264.0,0.00038666,2]
[400658909,1767772244685,-3030.276,0.00038666,2]
[400658911,1767772244695,-565.0,0.00038666,2]
[400658913,1767772244705,-2436.0,0.00038666,2]
[400658915,1767772244715,-549.87,0.0003872,30]
[400658917,1767772244724,-4691.56737684,0.00038781,2]
[400658919,1767772244735,-15079.98016307,0.00038874,2]
[400658921,1767772244744,-455.9275,0.00038888,30]
[400658923,1767772244755,-300.0,0.00038899,10]
[400658926,1767772244767,-146146.6130207,0.000389,31]
[400658992,1767772245481,-13644.46498233,0.000389,31]
[400658997,1767772245520,-234.8,0.00030214,2]
[400658999,1767772245531,-547.38603,0.000389,31]
[400659031,1767772245815,-151.0,0.00033,31]
[400659033,1767772245825,-1010.30062434,0.000389,31]
[400659036,1767772245836,-27651.09163192,0.000389,31]
[400659038,1767772245851,-1820.89468532,0.000389,31]
[400659040,1767772245862,-463.7179137,0.000389,31]
[400659066,1767772246095,-684.79242986,0.000179,2]
[400659069,1767772246107,-990.90354154,0.000179,2]
[400659071,1767772246116,-286.47336532,0.00023,2]
[400659073,1767772246127,-1389.22260603,0.00023,2]
[400659075,1767772246136,-193.92476019,0.000281,2]
[400659077,1767772246147,-1481.77121116,0.000281,2]
[400659079,1767772246156,-178.92424013,0.00033,31]
[400659081,1767772246167,-35.48208087,0.00033,31]
[400659083,1767772246176,-871.86265739,0.00033,31]
[400659085,1767772246187,-13.01115061,0.00033,31]
[400659088,1767772246196,-864.0665603,0.000389,31]
[400659090,1767772246207,-665.93763156,0.000389,31]
[400659092,1767772246218,-490.15265879,0.000389,31]
[400659105,1767772246348,-41.29656246,0.00029666,2]
[400659108,1767772246363,-439.16784143,0.00029666,2]
[400659110,1767772246374,-520.37284989,0.00029666,2]
[400659126,1767772246512,-3402.049892,0.00029666,2]
[400659128,1767772246523,-2145.11285422,0.00029666,2]
[400659130,1767772246532,-884.873808,0.00033,31]
[400659132,1767772246542,-1675.69597135,0.00033199,2]
[400659134,1767772246551,-1078.84824447,0.00034104,4]
[400659136,1767772246560,-1675.69597135,0.00038299,2]
[400659138,1767772246569,-111263.67669854,0.000389,31]
[400659140,1767772246580,-18801.76431556,0.000389,30]
[400659142,1767772246591,-553.57181392,0.000389,120]
[400659144,1767772246600,-362.88199793,0.00038945,2]
[400659147,1767772246610,-151.0,0.00038996,14]
[400659149,1767772246620,-1171.02247827,0.00038999,30]
[400659151,1767772246629,-1171.02247828,0.00038999,30]
[400659152,1767772246638,-317.47275185,0.00038999,10]
[400659154,1767772246647,-14709.20352791,0.00039,2]
[400659157,1767772246663,-816.59858741,0.00039,2]
[400659159,1767772246675,-1063.53697006,0.00039,2]
[400659162,1767772246686,-14037.43761429,0.00039,2]
[400659163,1767772246696,-109105.16210103,0.00039,120]
[400659166,1767772246707,-5991.65458347,0.00039,120]
[400659168,1767772246719,-1450.56010005,0.00039,120]
[400659173,1767772246759,-533.9999989,0.000179,2]
[400659394,1767772263729,150.26,0.00032877,120]
[400659395,1767772294447,1500.0,0.0003261,120]
[400659400,1767772357654,840.0,0.0003287,120]
[400659406,1767772404382,1500.0,0.00032877,120]
[400659408,1767772419209,1500.0,0.00032877,120]
[400659409,1767772473443,-1185.0,0.00016594,2]
[400659412,1767772665417,2920.0,0.00032877,120]
[400659416,1767772881406,10000.0,0.00032877,120]
[400659417,1767772901033,10000.0,0.00032877,120]
[400659418,1767772920822,10000.0,0.00032877,120]
[400659419,1767772935642,6000.0,0.00032877,120]
[400659420,1767772952403,5214.0,0.00032877,120]
[400659421,1767772960229,1000.0,0.00032,120]
[400659425,1767773078781,10000.0,0.00032877,120]
[400659426,1767773094771,10000.0,0.00032877,120]
[400659427,1767773111126,5000.0,0.00032877,120]
[400659428,1767773126544,5590.0,0.00032877,120]
[400659430,1767773248052,1000.0,0.00032877,120]
[400659431,1767773249633,1000.0,0.00032877,120]
[400659434,1767773286846,364.7,0.0003287,120]
[400659450,1767773350112,-1200.0,0.00016594,2]
[400659451,1767773350133,-250.0,0.00016594,2]
[400659452,1767773350152,-158.03890622,0.00016594,2]
[400659453,1767773350171,-500.0,0.00016595,2]
[400659454,1767773350191,-500.0,0.00016595,2]
[400659455,1767773350213,-500.0,0.00016595,2]
[400659456,1767773350232,-500.0,0.00016595,2]
[400659457,1767773350252,-250.0,0.00016598,2]
[400659458,1767773350273,-300.0,0.00016792,2]
[400659459,1767773350293,-300.0,0.00016793,2]
[400659460,1767773350313,-500.0,0.00016794,2]
[400659461,1767773350333,-398.05426978,0.00016794,2]
[400659462,1767773364069,800.32,0.00032877,120]
[400659472,1767773432008,-101.94573022,0.00016794,2]
[400659473,1767773432021,-256.0622123,0.00016794,2]
[400659474,1767773432162,-241.83333199,0.00016794,2]
[400659475,1767773432175,-250.0,0.00016795,2]
[400659476,1767773432187,-47.24095745,0.00016796,2]
[400659477,1767773432203,-103.75904255,0.00016796,2]
[400659478,1767773432216,-151.0,0.00016796,2]
[400659479,1767773432229,-151.0,0.00016796,2]
[400659480,1767773432242,-151.0,0.00016796,2]
[400659481,1767773432255,-158.21030412,0.00016796,2]
[400659482,1767773432268,-397.33497739,0.00016796,3]
[400659483,1767773432340,-217.07502261,0.00016796,3]
[400659484,1767773432353,-300.0,0.00016799,2]
[400659485,1767773432366,-1200.0,0.00016799,2]
[400659486,1767773432379,-300.0,0.00016799,2]
[400659487,1767773432392,-4603.81805522,0.000168,2]
[400659488,1767773432417,-1554.70714403,0.000168,2]
[400659490,1767773432456,-5729.98764194,0.000168,2]
[400659491,1767773432471,-1000.0,0.00016805,2]
[400659492,1767773432487,-1171.02247827,0.00016805,5]
[400659493,1767773432501,-1176.332,0.00016805,2]
[400659494,1767773432515,-167.08,0.00016805,2]
[400659495,1767773432530,-500.0,0.00016805,2]
[400659496,1767773432544,-500.0,0.00016805,2]
[400659497,1767773432557,-500.0,0.00016805,2]
[400659498,1767773432571,-342.57047538,0.00016805,2]
[400659499,1767773432585,-136949.11502179,0.00016806,2]
[400659500,1767773432601,-9013.34888268,0.00016806,2]
[400659501,1767773432623,-8381.9663206,0.00016806,2]
[400659502,1767773432642,-17890.36502781,0.00016806,2]
[400659503,1767773432660,-940.0,0.00016806,2]
[400659510,1767773438249,-310.97578582,0.000168,2]
[400659511,1767773438259,-1038.93132447,0.00016806,2]
[400659512,1767773438272,-825786.27342265,0.00016806,2]
[400659513,1767773438282,-195.35333666,0.000169,2]
[400659514,1767773438292,-250.0,0.00017,2]
[400659515,1767773438302,-150.0,0.00017114,2]
[400659516,1767773438312,-151.0,0.00017147,2]
[400659517,1767773438321,-151.0,0.00017147,2]
[400659518,1767773438331,-151.0,0.00017167,2]
[400659519,1767773438341,-151.0,0.00017167,2]
[400659520,1767773438350,-500.74248434,0.00017173,2]
[400659521,1767773438360,-505.38555235,0.00017594,2]
[400659522,1767773438370,-500.0,0.00017594,2]
[400659523,1767773438380,-500.0,0.00017594,2]
[400659524,1767773438390,-588.82,0.00017755,2]
[400659525,1767773438402,-259.20142711,0.00017953,2]
[400659526,1767773438411,-500.0,0.00017973,2]
[400659527,1767773438421,-501.30918073,0.00017973,2]
[400659528,1767773438432,-537.00577444,0.00017973,2]
[400659529,1767773438442,-1000.0,0.00018142,2]
[400659530,1767773438451,-151.1,0.00018216,2]
[400659531,1767773438461,-600.0,0.00018253,2]
[400659532,1767773438471,-250.0,0.00018253,2]
[400659533,1767773438480,-420.0,0.00018352,2]
[400659534,1767773438490,-1680.0,0.00018443,2]
[400659535,1767773438500,-250.0,0.00018473,2]
[400659536,1767773438510,-1500.0,0.0001869,2]
[400659537,1767773438519,-938.63568615,0.00019,2]
[400659539,1767773438528,-500.0,0.000192,2]
[400659541,1767773438537,-500.0,0.000192,2]
[400659543,1767773438548,-500.0,0.000192,2]
[400659546,1767773438557,-500.0,0.000192,2]
[400659548,1767773438566,-500.0,0.000192,2]
[400659550,1767773438576,-500.0,0.000192,2]
[400659551,1767773438585,-500.0,0.000192,2]
[400659552,1767773438594,-500.0,0.000192,2]
[400659554,1767773438603,-500.0,0.000192,2]
[400659556,1767773438612,-500.0,0.000192,2]
[400659558,1767773438622,-500.0,0.000192,2]
[400659560,1767773438631,-500.0,0.000192,2]
[400659562,1767773438641,-500.0,0.000192,2]
[400659564,1767773438650,-500.0,0.000192,2]
[400659566,1767773438659,-500.0,0.000192,2]
[400659568,1767773438669,-500.0,0.000192,2]
[400659570,1767773438679,-500.0,0.000192,2]
[400659572,1767773438688,-572.5,0.000192,2]
[400659574,1767773438697,-2000.0,0.00019238,2]
[400659576,1767773438707,-7284.69478588,0.00019749,2]
[400659578,1767773438717,-4603.8180552,0.00019752,2]
[400659580,1767773438726,-2500.0,0.00019786,2]
[400659582,1767773438736,-500.0,0.00019973,2]
[400659584,1767773438747,-219.69716765,0.00019973,2]
[400659586,1767773438758,-500.0,0.00019973,2]
[400659588,1767773438767,-500.0,0.00019973,2]
[400659590,1767773438777,-587.0,0.00020049,2]
[400659592,1767773438787,-1986.0,0.00020249,2]
[400659594,1767773438797,-3000.0,0.00020334,2]
[400659596,1767773438807,-500.0,0.000207,2]
[400659598,1767773438816,-500.0,0.000207,2]
[400659599,1767773438827,-500.0,0.000207,2]
[400659601,1767773438837,-500.0,0.000207,2]
[400659603,1767773438847,-500.0,0.000207,2]
[400659606,1767773438857,-500.0,0.000207,2]
[400659608,1767773438867,-500.0,0.000207,2]
[400659610,1767773438877,-500.0,0.000207,2]
[400659611,1767773438887,-3500.0,0.00020882,2]
[400659613,1767773438896,-154.96,0.000211,7]
[400659615,1767773438906,-4000.0,0.0002143,2]
[400659617,1767773438916,-3718.802874,0.00021643,2]
[400659619,1767773438927,-549.78,0.00021678,2]
[400659622,1767773438936,-152.0,0.00021678,2]
[400659624,1767773438946,-297.88460634,0.00021678,2]
[400659626,1767773438955,-152.0,0.00021678,2]
[400659627,1767773438965,-738.16298262,0.00021678,2]
[400659630,1767773438974,-152.0,0.00021678,2]
[400659632,1767773438984,-152.0,0.00021678,2]
[400659633,1767773438995,-152.0,0.00021678,2]
[400659635,1767773439004,-158.0,0.00021678,2]
[400659638,1767773439014,-152.0,0.00021678,2]
[400659640,1767773439023,-158.0,0.00021678,2]
[400659641,1767773439033,-152.0,0.00021678,2]
[400659643,1767773439042,-162.89403205,0.00021678,2]
[400659645,1767773439052,-155.24514317,0.00021678,2]
[400659647,1767773439061,-151.0,0.00021678,2]
[400659650,1767773439071,-151.0,0.00021678,2]
[400659651,1767773439080,-157.0,0.00021678,2]
[400659653,1767773439090,-5000.0,0.00021918,2]
[400659655,1767773439100,-164.0,0.00021918,2]
[400659657,1767773439109,-164.0,0.00021918,2]
[400659659,1767773439119,-164.0,0.00021918,2]
[400659661,1767773439129,-154.0,0.00021918,2]
[400659663,1767773439138,-154.0,0.00021918,2]
[400659665,1767773439147,-164.0,0.00021918,2]
[400659667,1767773439157,-154.0,0.00021918,2]
[400659669,1767773439167,-158.65429393,0.00021918,2]
[400659671,1767773439177,-154.0,0.00021918,2]
[400659674,1767773439186,-154.0,0.00021918,2]
[400659675,1767773439196,-154.0,0.00021918,2]
[400659677,1767773439205,-154.0,0.00021918,2]
[400659679,1767773439215,-154.0,0.00021918,2]
[400659682,1767773439224,-154.0,0.00021918,2]
[400659683,1767773439233,-154.0,0.00021918,2]
[400659685,1767773439242,-154.0,0.00021918,2]
[400659688,1767773439252,-154.0,0.00021918,2]
[400659690,1767773439262,-154.0,0.00021918,2]
[400659692,1767773439271,-154.0,0.00021918,2]
[400659694,1767773439281,-154.0,0.00021918,2]
[400659696,1767773439290,-154.0,0.00021918,2]
[400659698,1767773439300,-299.68684401,0.00021918,2]
[400659700,1767773439309,-549.78,0.00021952,2]
[400659702,1767773439318,-2441.3835048,0.00021978,2]
[400659704,1767773439328,-175.6,0.00022,7]
[400659706,1767773439337,-259.20142709,0.0002219,2]
[400659708,1767773439346,-549.78,0.00022226,2]
[400659710,1767773439356,-549.78,0.000225,2]
[400659712,1767773439365,-7284.69478588,0.00022697,2]
[400659714,1767773439375,-4603.8180552,0.00022704,2]
[400659716,1767773439384,-549.8,0.00022774,2]
[400659718,1767773439393,-500.0,0.00023167,2]
[400659720,1767773439402,-7284.69478588,0.00025646,2]
[400659722,1767773439411,-4603.8180552,0.00025656,2]
[400659724,1767773439420,-163.18445166,0.00026197,2]
[400659726,1767773439430,-259.20142709,0.00026426,2]
[400659728,1767773439439,-150.99,0.00026591,2]
[400659730,1767773439448,-16137.17,0.00026591,2]
[400659732,1767773439457,-2390.29,0.00026591,2]
[400659734,1767773439466,-200.0,0.00027384,2]
[400659736,1767773439475,-207.4,0.00027384,2]
[400659738,1767773439484,-215.0738,0.00027384,2]
[400659740,1767773439493,-223.0315306,0.00027384,2]
[400659742,1767773439502,-231.28369723,0.00027384,2]
[400659744,1767773439511,-239.84119403,0.00027384,2]
[400659746,1767773439521,-378.6,0.00027397,4]
[400659748,1767773439530,-345.0,0.00027397,6]
[400659750,1767773439540,-450.26,0.00027397,30]
[400659752,1767773439549,-500.0,0.00028033,5]
[400659754,1767773439559,-500.0,0.00028033,5]
[400659756,1767773439568,-500.0,0.00028033,5]
[400659757,1767773439578,-500.0,0.00028033,5]
[400659758,1767773439590,-1000.0,0.00028581,5]
[400659759,1767773439599,-1000.0,0.00028581,5]
[400659760,1767773439609,-500.0,0.00028581,5]
[400659761,1767773439618,-7284.69478588,0.00028594,2]
[400659762,1767773439629,-4603.8180552,0.00028608,2]
[400659763,1767773439641,-356.57373325,0.00029123,2]
[400659764,1767773439650,-336.0928788,0.00029123,2]
[400659765,1767773439659,-1500.0,0.00029129,5]
[400659767,1767773439669,-509.85151383,0.00029129,5]
[400659769,1767773439679,-568.55,0.00029545,2]
[400659771,1767773439689,-2436.0,0.00029545,2]
[400659773,1767773439700,-4818.0,0.00029545,2]
[400659775,1767773439710,-2003.18143071,0.00029677,5]
[400659777,1767773439720,-512.0,0.00029877,2]
[400659779,1767773439730,-464.9,0.0003,14]
[400659781,1767773439739,-259.20142709,0.00030663,2]
[400659783,1767773439754,-400.0,0.00031,7]
[400659785,1767773439763,-512.0,0.00031309,3]
[400659787,1767773439773,-7284.69478588,0.00031543,2]
[400659789,1767773439782,-4603.8180552,0.00031559,2]
[400659791,1767773439792,-450.26,0.00031723,30]
[400659793,1767773439802,-190.899,0.00031766,2]
[400659795,1767773439811,-1330.0,0.00031766,2]
[400659797,1767773439821,-614.0,0.00031766,2]
[400659799,1767773439830,-2670.95900645,0.00031766,2]
[400659803,1767773439860,-796.04099355,0.00031766,2]
[400659805,1767773439871,-1405.0,0.00031766,2]
[400659807,1767773439881,-1266.0,0.00031766,2]
[400659809,1767773439890,-505.0,0.00031766,2]
[400659811,1767773439899,-1201.0,0.00031766,2]
[400659813,1767773439908,-914.0,0.00031766,2]
[400659815,1767773439918,-540.3,0.00031888,2]
[400659817,1767773439928,-978.0,0.00032,2]
[400659819,1767773439938,-1444.72084773,0.00032061,2]
[400659821,1767773439950,-3106.04915227,0.00032061,2]
[400659823,1767773439959,-192.15354865,0.00032219,20]
[400659825,1767773439971,-954.45637261,0.00032219,20]
[400659827,1767773439980,-1030.75377667,0.00032219,20]
[400659829,1767773439990,-1416.16365034,0.00032219,20]
[400659831,1767773439999,-2939.0,0.00032227,5]
[400659833,1767773440009,-565.0,0.00032545,2]
[400659835,1767773440019,-2436.0,0.00032545,2]
[400659867,1767773440311,-4818.0,0.00032545,2]
[400659869,1767773440323,-512.0,0.00032741,5]